[Event "Titled Tuesday Blitz August 09 Early 2022"]
[White "Jorquera, Marcelo"]
[Black "Wieczorek, Oskar"]
[WhiteFideId "3401197"]
[BlackFideId "1133950"]
[WhiteElo "2136"]
[BlackElo "2302"]
[Result "0-1"]
[Round "01"]
[TimeControl "180+1"]
[Date "2022.08.09"]
[WhiteClock "0:00:03"]
[BlackClock "0:00:03"]

1. e4 {[%clk 0:02:54]}  c5 {[%clk 0:02:58]} 2. Nc3 {[%clk 0:02:52]}  e6 {[%clk 0:02:57]} 3. g3 {[%clk 0:02:52]}  d5 {[%clk 0:02:55]} 4. exd5 {[%clk 0:02:53]}  exd5 {[%clk 0:02:56]} 5. Bg2 {[%clk 0:02:54]}  d4 {[%clk 0:02:56]} 6. Qe2+ {[%clk 0:02:53]}  Be7 {[%clk 0:02:55]} 7. Nd5 {[%clk 0:02:53]}  Nc6 {[%clk 0:02:56]} 8. d3 {[%clk 0:02:51]}  Be6 {[%clk 0:02:56]} 9. Nxe7 {[%clk 0:02:49]}  Ngxe7 {[%clk 0:02:56]} 10. Nf3 {[%clk 0:02:48]}  O-O {[%clk 0:02:56]} 11. O-O {[%clk 0:02:47]}  Re8 {[%clk 0:02:57]} 12. Re1 {[%clk 0:02:38]}  Qd7 {[%clk 0:02:56]} 13. Bd2 {[%clk 0:02:33]}  Bd5 {[%clk 0:02:53]} 14. Ne5 {[%clk 0:02:26]}  Nxe5 {[%clk 0:02:51]} 15. Qxe5 {[%clk 0:02:27]}  Bxg2 {[%clk 0:02:41]} 16. Kxg2 {[%clk 0:02:28]}  Qd5+ {[%clk 0:02:23]} 17. Qxd5 {[%clk 0:02:24]}  Nxd5 {[%clk 0:02:23]} 18. a3 {[%clk 0:02:14]}  a6 {[%clk 0:02:15]} 19. Kf3 {[%clk 0:02:12]}  f6 {[%clk 0:02:05]} 20. Rxe8+ {[%clk 0:02:01]}  Rxe8 {[%clk 0:02:06]} 21. Re1 {[%clk 0:02:00]}  Rxe1 {[%clk 0:02:06]} 22. Bxe1 {[%clk 0:02:01]}  Kf7 {[%clk 0:02:05]} 23. Bd2 {[%clk 0:01:53]}  Ke6 {[%clk 0:02:05]} 24. g4 {[%clk 0:01:52]}  g6 {[%clk 0:02:03]} 25. h3 {[%clk 0:01:50]}  b5 {[%clk 0:02:03]} 26. b3 {[%clk 0:01:43]}  Ke5 {[%clk 0:01:30]} 27. Ba5 {[%clk 0:01:30]}  g5 {[%clk 0:01:21]} 28. Bd8 {[%clk 0:01:17]}  h6 {[%clk 0:01:20]} 29. Ba5 {[%clk 0:01:12]}  Ke6 {[%clk 0:01:06]} 30. Bd2 {[%clk 0:01:11]}  f5 {[%clk 0:01:02]} 31. Ba5 {[%clk 0:00:54]}  Kf6 {[%clk 0:00:44]} 32. Bd2 {[%clk 0:00:45]}  Kg6 {[%clk 0:00:43]} 33. Bc1 {[%clk 0:00:42]}  Nf6 {[%clk 0:00:34]} 34. Bd2 {[%clk 0:00:39]}  Nd7 {[%clk 0:00:34]} 35. Ba5 {[%clk 0:00:35]}  Ne5+ {[%clk 0:00:34]} 36. Kg3 {[%clk 0:00:34]}  f4+ {[%clk 0:00:34]} 37. Kg2 {[%clk 0:00:34]}  h5 {[%clk 0:00:35]} 38. f3 {[%clk 0:00:33]}  h4 {[%clk 0:00:30]} 39. Bb6 {[%clk 0:00:32]}  Nd7 {[%clk 0:00:29]} 40. Bd8 {[%clk 0:00:30]}  Nf8 {[%clk 0:00:30]} 41. Be7 {[%clk 0:00:28]}  Ne6 {[%clk 0:00:31]} 42. Kf2 {[%clk 0:00:28]}  Kf7 {[%clk 0:00:31]} 43. Bd6 {[%clk 0:00:26]}  Ke8 {[%clk 0:00:30]} 44. Ke2 {[%clk 0:00:23]}  Kd7 {[%clk 0:00:31]} 45. Be5 {[%clk 0:00:23]}  Kc6 {[%clk 0:00:31]} 46. Bf6 {[%clk 0:00:22]}  Kd5 {[%clk 0:00:32]} 47. Kd2 {[%clk 0:00:21]}  c4 {[%clk 0:00:32]} 48. dxc4+ {[%clk 0:00:15]}  bxc4 {[%clk 0:00:33]} 49. b4 {[%clk 0:00:12]}  Kc6 {[%clk 0:00:27]} 50. a4 {[%clk 0:00:12]}  Kb6 {[%clk 0:00:26]} 51. Ke2 {[%clk 0:00:11]}  Kc6 {[%clk 0:00:18]} 52. Kd2 {[%clk 0:00:11]}  Kc7 {[%clk 0:00:17]} 53. Ke2 {[%clk 0:00:12]}  Kb6 {[%clk 0:00:17]} 54. Kd2 {[%clk 0:00:12]}  a5 {[%clk 0:00:17]} 55. b5 {[%clk 0:00:11]}  Kc5 {[%clk 0:00:18]} 56. Ke2 {[%clk 0:00:11]}  Kd5 {[%clk 0:00:19]} 57. Kd2 {[%clk 0:00:11]}  c3+ {[%clk 0:00:10]} 58. Ke2 {[%clk 0:00:09]}  Nc5 {[%clk 0:00:11]} 59. Bxg5 {[%clk 0:00:07]}  Nxa4 {[%clk 0:00:11]} 60. Bxh4 {[%clk 0:00:05]}  Nb2 {[%clk 0:00:11]} 61. Be7 {[%clk 0:00:02]}  Ke6 {[%clk 0:00:04]} 62. Bf8 {[%clk 0:00:01]}  Nc4 {[%clk 0:00:03]} 63. h4 {[%clk 0:00:01]}  a4 {[%clk 0:00:03]} 64. h5 {[%clk 0:00:02]}  a3 {[%clk 0:00:03]} 65. Bxa3 {[%clk 0:00:02]}  Nxa3 {[%clk 0:00:04]} 66. b6 {[%clk 0:00:03]}  Nxc2 {[%clk 0:00:03]} 67. b7 {[%clk 0:00:03]}  Nb4 {[%clk 0:00:03]} 68. b8=Q {[%clk 0:00:03]}  d3+ {[%clk 0:00:04]} 69. Kf2 {[%clk 0:00:03]}  d2 {[%clk 0:00:04]} 70. Qd8 {[%clk 0:00:02]}  Nc2 {[%clk 0:00:03]} 71. Qe8+ {[%clk 0:00:03]}  Kd6 {[%clk 0:00:03]} 0-1


[Site "https://www.chess.com"]

[Event "Titled Tuesday Blitz August 09 Early 2022"]
[White "Kaufman, Raymond"]
[Black "Levitskiy, Andrey"]
[WhiteFideId "2015056"]
[BlackFideId "14132885"]
[WhiteElo "2321"]
[BlackElo "2293"]
[Result "0-1"]
[Round "01"]
[TimeControl "180+1"]
[Date "2022.08.09"]
[WhiteClock "0:00:06"]
[BlackClock "0:00:26"]

1. e4 {[%clk 0:02:59]}  e6 {[%clk 0:02:59]} 2. d4 {[%clk 0:02:58]}  d5 {[%clk 0:02:59]} 3. Nc3 {[%clk 0:02:57]}  Bb4 {[%clk 0:02:54]} 4. Ne2 {[%clk 0:02:56]}  Nc6 {[%clk 0:02:54]} 5. Be3 {[%clk 0:02:45]}  dxe4 {[%clk 0:02:42]} 6. a3 {[%clk 0:02:41]}  Bxc3+ {[%clk 0:02:43]} 7. Nxc3 {[%clk 0:02:41]}  Nf6 {[%clk 0:02:40]} 8. Bb5 {[%clk 0:02:25]}  Bd7 {[%clk 0:02:37]} 9. Qe2 {[%clk 0:02:13]}  a6 {[%clk 0:02:34]} 10. Ba4 {[%clk 0:02:06]}  h6 {[%clk 0:02:25]} 11. O-O-O {[%clk 0:01:48]}  Ne7 {[%clk 0:02:12]} 12. Bb3 {[%clk 0:01:30]}  Ned5 {[%clk 0:02:01]} 13. Nxd5 {[%clk 0:01:30]}  exd5 {[%clk 0:02:01]} 14. f3 {[%clk 0:01:23]}  Be6 {[%clk 0:01:56]} 15. c4 {[%clk 0:01:03]}  exf3 {[%clk 0:01:51]} 16. gxf3 {[%clk 0:01:00]}  dxc4 {[%clk 0:01:51]} 17. Bxc4 {[%clk 0:01:01]}  Bxc4 {[%clk 0:01:47]} 18. Qxc4 {[%clk 0:01:02]}  Qd5 {[%clk 0:01:48]} 19. Qxc7 {[%clk 0:00:53]}  O-O {[%clk 0:01:38]} 20. Qe5 {[%clk 0:00:53]}  Qa2 {[%clk 0:01:27]} 21. d5 {[%clk 0:00:49]}  Rfe8 {[%clk 0:01:20]} 22. Qd4 {[%clk 0:00:46]}  Nxd5 {[%clk 0:01:13]} 23. Qxd5 {[%clk 0:00:39]}  Qxd5 {[%clk 0:00:47]} 24. Rxd5 {[%clk 0:00:38]}  Rxe3 {[%clk 0:00:47]} 25. Rd7 {[%clk 0:00:37]}  b5 {[%clk 0:00:41]} 26. f4 {[%clk 0:00:22]}  Rf3 {[%clk 0:00:41]} 27. Rd4 {[%clk 0:00:17]}  Re8 {[%clk 0:00:41]} 28. Rhd1 {[%clk 0:00:16]}  Re2 {[%clk 0:00:32]} 29. Rd8+ {[%clk 0:00:09]}  Kh7 {[%clk 0:00:31]} 30. R8d6 {[%clk 0:00:08]}  Rxf4 {[%clk 0:00:26]} 31. Rxa6 {[%clk 0:00:06]}  Rff2 {[%clk 0:00:26]} 0-1


[Site "https://www.chess.com"]

[Event "Titled Tuesday Blitz August 09 Early 2022"]
[White "Khabinets, Ivan"]
[Black "McConnell, Griffin"]
[WhiteFideId "14115980"]
[BlackFideId "30942551"]
[WhiteElo "2114"]
[BlackElo "2297"]
[Result "1-0"]
[Round "01"]
[TimeControl "180+1"]
[Date "2022.08.09"]
[WhiteClock "0:01:07"]
[BlackClock "0:00:13"]

1. e4 {[%clk 0:02:49]}  c6 {[%clk 0:02:59]} 2. d4 {[%clk 0:02:46]}  d5 {[%clk 0:03:00]} 3. e5 {[%clk 0:02:40]}  c5 {[%clk 0:02:59]} 4. dxc5 {[%clk 0:02:40]}  e6 {[%clk 0:02:59]} 5. a3 {[%clk 0:02:39]}  Bxc5 {[%clk 0:02:59]} 6. Nf3 {[%clk 0:02:40]}  Nc6 {[%clk 0:02:56]} 7. b4 {[%clk 0:02:40]}  Be7 {[%clk 0:02:56]} 8. Bd3 {[%clk 0:02:40]}  f6 {[%clk 0:02:52]} 9. Bb2 {[%clk 0:02:40]}  Nh6 {[%clk 0:02:53]} 10. O-O {[%clk 0:02:37]}  O-O {[%clk 0:02:52]} 11. c4 {[%clk 0:02:37]}  Nf7 {[%clk 0:02:45]} 12. exf6 {[%clk 0:02:33]}  Bxf6 {[%clk 0:02:44]} 13. Nc3 {[%clk 0:02:32]}  d4 {[%clk 0:02:22]} 14. Ne4 {[%clk 0:02:29]}  e5 {[%clk 0:02:23]} 15. c5 {[%clk 0:02:27]}  Be7 {[%clk 0:02:17]} 16. Bc4 {[%clk 0:02:23]}  Kh8 {[%clk 0:02:12]} 17. Qd3 {[%clk 0:02:21]}  Bf5 {[%clk 0:02:10]} 18. Rfe1 {[%clk 0:02:18]}  Ng5 {[%clk 0:02:00]} 19. Nfxg5 {[%clk 0:02:16]}  Bxg5 {[%clk 0:02:01]} 20. Qb3 {[%clk 0:02:05]}  Bf4 {[%clk 0:01:41]} 21. Nd6 {[%clk 0:01:58]}  Qg5 {[%clk 0:01:21]} 22. Nf7+ {[%clk 0:01:47]}  Rxf7 {[%clk 0:01:20]} 23. Bxf7 {[%clk 0:01:48]}  Rf8 {[%clk 0:01:08]} 24. Bd5 {[%clk 0:01:45]}  Bd2 {[%clk 0:00:53]} 25. Re2 {[%clk 0:01:37]}  Bg4 {[%clk 0:00:52]} 26. f3 {[%clk 0:01:32]}  Bh3 {[%clk 0:00:38]} 27. Kh1 {[%clk 0:01:29]}  Bd7 {[%clk 0:00:36]} 28. Qc2 {[%clk 0:01:23]}  Bf4 {[%clk 0:00:34]} 29. Bc1 {[%clk 0:01:21]}  Ne7 {[%clk 0:00:26]} 30. Bxf4 {[%clk 0:01:21]}  Rxf4 {[%clk 0:00:24]} 31. Bxb7 {[%clk 0:01:20]}  Nf5 {[%clk 0:00:23]} 32. c6 {[%clk 0:01:17]}  Be6 {[%clk 0:00:15]} 33. c7 {[%clk 0:01:13]}  h5 {[%clk 0:00:15]} 34. c8=Q+ {[%clk 0:01:13]}  Bxc8 {[%clk 0:00:15]} 35. Qxc8+ {[%clk 0:01:09]}  Kh7 {[%clk 0:00:15]} 36. Be4 {[%clk 0:01:10]}  g6 {[%clk 0:00:13]} 37. Rc1 {[%clk 0:01:08]}  Qh4 {[%clk 0:00:13]} 38. Rc7+ {[%clk 0:01:07]}  Kh6 {[%clk 0:00:13]} 39. Qh8+ {[%clk 0:01:06]}  Kg5 {[%clk 0:00:13]} 40. Qd8+ {[%clk 0:01:07]}  Kh6 {[%clk 0:00:13]} 41. Qxh4 {[%clk 0:01:06]}  Nxh4 {[%clk 0:00:13]} 42. g3 {[%clk 0:01:07]} 1-0


[Site "https://www.chess.com"]

[Event "Titled Tuesday Blitz August 09 Early 2022"]
[White "Khripachenko, Alexander"]
[Black "Gubanov, Oleg"]
[WhiteFideId "54184975"]
[BlackFideId "14115115"]
[WhiteElo "2233"]
[BlackElo "2080"]
[Result "1-0"]
[Round "01"]
[TimeControl "180+1"]
[Date "2022.08.09"]
[WhiteClock "0:02:22"]
[BlackClock "0:00:04"]

1. e4 {[%clk 0:02:59]}  Nf6 {[%clk 0:02:59]} 2. e5 {[%clk 0:02:52]}  Nd5 {[%clk 0:02:59]} 3. d4 {[%clk 0:02:52]}  d6 {[%clk 0:02:59]} 4. Bc4 {[%clk 0:02:53]}  dxe5 {[%clk 0:02:55]} 5. dxe5 {[%clk 0:02:52]}  c6 {[%clk 0:02:55]} 6. Nf3 {[%clk 0:02:52]}  g6 {[%clk 0:01:59]} 7. O-O {[%clk 0:02:48]}  Bg7 {[%clk 0:01:59]} 8. Re1 {[%clk 0:02:49]}  Bg4 {[%clk 0:01:52]} 9. Nbd2 {[%clk 0:02:48]}  e6 {[%clk 0:01:46]} 10. h3 {[%clk 0:02:48]}  Bxf3 {[%clk 0:01:45]} 11. Nxf3 {[%clk 0:02:49]}  O-O {[%clk 0:01:45]} 12. h4 {[%clk 0:02:48]}  Nd7 {[%clk 0:01:39]} 13. h5 {[%clk 0:02:48]}  Qc7 {[%clk 0:01:39]} 14. Qe2 {[%clk 0:02:46]}  b5 {[%clk 0:01:27]} 15. Bd3 {[%clk 0:02:46]}  Nc5 {[%clk 0:01:23]} 16. Bg5 {[%clk 0:02:45]}  Nxd3 {[%clk 0:00:54]} 17. cxd3 {[%clk 0:02:45]}  c5 {[%clk 0:00:54]} 18. Rac1 {[%clk 0:02:43]}  Qb6 {[%clk 0:00:46]} 19. h6 {[%clk 0:02:43]}  Bh8 {[%clk 0:00:45]} 20. Nd2 {[%clk 0:02:43]}  Rfe8 {[%clk 0:00:34]} 21. Kh1 {[%clk 0:02:41]}  Rac8 {[%clk 0:00:22]} 22. f4 {[%clk 0:02:41]}  Rc7 {[%clk 0:00:17]} 23. Ne4 {[%clk 0:02:41]}  Rec8 {[%clk 0:00:16]} 24. b3 {[%clk 0:02:38]}  Qa6 {[%clk 0:00:12]} 25. Red1 {[%clk 0:02:37]}  c4 {[%clk 0:00:12]} 26. dxc4 {[%clk 0:02:37]}  bxc4 {[%clk 0:00:13]} 27. Nd6 {[%clk 0:02:32]}  Rb8 {[%clk 0:00:05]} 28. bxc4 {[%clk 0:02:26]}  Nb6 {[%clk 0:00:04]} 29. Qd3 {[%clk 0:02:23]}  Rd8 {[%clk 0:00:04]} 30. Bxd8 {[%clk 0:02:22]} 1-0


[Site "https://www.chess.com"]

[Event "Titled Tuesday Blitz August 09 Early 2022"]
[White "Korchmar, Vasiliy"]
[Black "De Souza, Cristiano Gomes"]
[WhiteFideId "24131750"]
[BlackFideId "2151758"]
[WhiteElo "2370"]
[BlackElo "2068"]
[Result "1-0"]
[Round "01"]
[TimeControl "180+1"]
[Date "2022.08.09"]
[WhiteClock "0:01:06"]
[BlackClock "0:00:12"]

1. e4 {[%clk 0:03:00]}  c5 {[%clk 0:02:59]} 2. Nf3 {[%clk 0:03:00]}  d6 {[%clk 0:02:58]} 3. d4 {[%clk 0:03:00]}  cxd4 {[%clk 0:02:58]} 4. Nxd4 {[%clk 0:03:01]}  Nf6 {[%clk 0:02:58]} 5. Nc3 {[%clk 0:03:02]}  a6 {[%clk 0:02:57]} 6. Be3 {[%clk 0:03:01]}  e5 {[%clk 0:02:54]} 7. Nb3 {[%clk 0:03:01]}  Be6 {[%clk 0:02:55]} 8. f3 {[%clk 0:03:01]}  Nbd7 {[%clk 0:02:45]} 9. Qd2 {[%clk 0:03:00]}  Be7 {[%clk 0:02:44]} 10. O-O-O {[%clk 0:03:00]}  O-O {[%clk 0:02:43]} 11. g4 {[%clk 0:02:59]}  b5 {[%clk 0:02:42]} 12. g5 {[%clk 0:02:53]}  b4 {[%clk 0:02:41]} 13. Ne2 {[%clk 0:02:51]}  Nh5 {[%clk 0:02:39]} 14. Ng3 {[%clk 0:02:45]}  Nf4 {[%clk 0:02:30]} 15. h4 {[%clk 0:02:44]}  a5 {[%clk 0:02:29]} 16. Kb1 {[%clk 0:02:44]}  a4 {[%clk 0:02:28]} 17. Nc1 {[%clk 0:02:45]}  Qa5 {[%clk 0:02:09]} 18. Nf5 {[%clk 0:02:38]}  Bxf5 {[%clk 0:02:04]} 19. exf5 {[%clk 0:02:39]}  Rfc8 {[%clk 0:01:43]} 20. Bxf4 {[%clk 0:02:26]}  exf4 {[%clk 0:01:42]} 21. f6 {[%clk 0:02:24]}  gxf6 {[%clk 0:01:38]} 22. Bh3 {[%clk 0:02:24]}  Rc7 {[%clk 0:01:30]} 23. Bxd7 {[%clk 0:02:22]}  Rxd7 {[%clk 0:01:29]} 24. gxf6 {[%clk 0:02:16]}  Bxf6 {[%clk 0:01:16]} 25. Qxf4 {[%clk 0:02:17]}  Qe5 {[%clk 0:01:11]} 26. Qg4+ {[%clk 0:02:17]}  Kh8 {[%clk 0:01:10]} 27. Nd3 {[%clk 0:02:18]}  Qe6 {[%clk 0:01:08]} 28. Qxb4 {[%clk 0:01:37]}  a3 {[%clk 0:00:57]} 29. b3 {[%clk 0:01:37]}  Rc7 {[%clk 0:00:50]} 30. Qe4 {[%clk 0:01:29]}  Qxe4 {[%clk 0:00:46]} 31. fxe4 {[%clk 0:01:30]}  Re8 {[%clk 0:00:43]} 32. Nf4 {[%clk 0:01:25]}  Bg7 {[%clk 0:00:34]} 33. Nd5 {[%clk 0:01:24]}  Rb7 {[%clk 0:00:27]} 34. h5 {[%clk 0:01:20]}  Be5 {[%clk 0:00:22]} 35. h6 {[%clk 0:01:20]}  Rg8 {[%clk 0:00:17]} 36. Ne3 {[%clk 0:01:09]}  Rg3 {[%clk 0:00:14]} 37. Nc4 {[%clk 0:01:09]}  Rg5 {[%clk 0:00:12]} 38. Nxe5 {[%clk 0:01:06]} 1-0


[Site "https://www.chess.com"]

[Event "Titled Tuesday Blitz August 09 Early 2022"]
[White "Kravtsiv, Martyn"]
[Black "Veiga, Jose Francisco R P Neves"]
[WhiteFideId "14113147"]
[BlackFideId "1930087"]
[WhiteElo "2694"]
[BlackElo "2273"]
[Result "1-0"]
[Round "01"]
[TimeControl "180+1"]
[Date "2022.08.09"]
[WhiteClock "0:00:40"]
[BlackClock "0:01:25"]

1. e4 {[%clk 0:03:00]}  c6 {[%clk 0:02:56]} 2. Nf3 {[%clk 0:02:59]}  d5 {[%clk 0:02:54]} 3. d3 {[%clk 0:02:59]}  dxe4 {[%clk 0:02:53]} 4. dxe4 {[%clk 0:02:59]}  Qxd1+ {[%clk 0:02:53]} 5. Kxd1 {[%clk 0:02:59]}  Nf6 {[%clk 0:02:54]} 6. Nbd2 {[%clk 0:02:56]}  Nbd7 {[%clk 0:02:47]} 7. a4 {[%clk 0:02:53]}  e5 {[%clk 0:02:47]} 8. Bd3 {[%clk 0:02:42]}  Bc5 {[%clk 0:02:46]} 9. Ke2 {[%clk 0:02:42]}  Ng4 {[%clk 0:02:40]} 10. Rf1 {[%clk 0:02:39]}  f6 {[%clk 0:02:41]} 11. a5 {[%clk 0:02:37]}  Ke7 {[%clk 0:02:37]} 12. c3 {[%clk 0:02:36]}  Rd8 {[%clk 0:02:33]} 13. b4 {[%clk 0:02:32]}  Bd6 {[%clk 0:02:33]} 14. Nc4 {[%clk 0:02:33]}  Bc7 {[%clk 0:02:29]} 15. Ba3 {[%clk 0:02:08]}  Kf7 {[%clk 0:02:29]} 16. h3 {[%clk 0:02:08]}  Nh6 {[%clk 0:02:29]} 17. Ne3 {[%clk 0:02:08]}  Nf8 {[%clk 0:02:28]} 18. Rh1 {[%clk 0:01:52]}  Be6 {[%clk 0:02:27]} 19. Rad1 {[%clk 0:01:42]}  Rd7 {[%clk 0:02:27]} 20. Bc2 {[%clk 0:01:30]}  Rad8 {[%clk 0:02:26]} 21. h4 {[%clk 0:01:28]}  Ng6 {[%clk 0:02:25]} 22. g3 {[%clk 0:01:27]}  Ng4 {[%clk 0:02:23]} 23. Nf5 {[%clk 0:01:27]}  h5 {[%clk 0:02:17]} 24. Ne3 {[%clk 0:01:20]}  b5 {[%clk 0:02:08]} 25. Rxd7+ {[%clk 0:01:19]}  Rxd7 {[%clk 0:02:08]} 26. Rd1 {[%clk 0:01:18]}  Rxd1 {[%clk 0:02:08]} 27. Bxd1 {[%clk 0:01:17]}  a6 {[%clk 0:02:07]} 28. Bc1 {[%clk 0:01:17]}  Ne7 {[%clk 0:02:07]} 29. Ne1 {[%clk 0:01:13]}  Bb8 {[%clk 0:02:04]} 30. Nxg4 {[%clk 0:01:11]}  Bxg4+ {[%clk 0:02:05]} 31. f3 {[%clk 0:01:11]}  Be6 {[%clk 0:02:05]} 32. Be3 {[%clk 0:01:12]}  Nc8 {[%clk 0:02:06]} 33. Nd3 {[%clk 0:01:10]}  Bc4 {[%clk 0:02:06]} 34. Kd2 {[%clk 0:01:10]}  Bxd3 {[%clk 0:02:06]} 35. Kxd3 {[%clk 0:01:10]}  Ba7 {[%clk 0:02:06]} 36. Bb3+ {[%clk 0:01:10]}  Ke7 {[%clk 0:02:05]} 37. Bd2 {[%clk 0:01:05]}  Nd6 {[%clk 0:02:05]} 38. g4 {[%clk 0:01:04]}  g6 {[%clk 0:02:02]} 39. Bd1 {[%clk 0:01:03]}  Bf2 {[%clk 0:01:56]} 40. gxh5 {[%clk 0:01:02]}  gxh5 {[%clk 0:01:56]} 41. f4 {[%clk 0:01:03]}  Bxh4 {[%clk 0:01:56]} 42. Bxh5 {[%clk 0:01:02]}  Bg3 {[%clk 0:01:48]} 43. fxe5 {[%clk 0:01:01]}  Bxe5 {[%clk 0:01:47]} 44. Be3 {[%clk 0:01:01]}  Nc4 {[%clk 0:01:47]} 45. Bc5+ {[%clk 0:00:59]}  Ke6 {[%clk 0:01:46]} 46. Bg4+ {[%clk 0:00:56]}  Kf7 {[%clk 0:01:44]} 47. Bc8 {[%clk 0:00:56]}  Nb2+ {[%clk 0:01:42]} 48. Kc2 {[%clk 0:00:54]}  Na4 {[%clk 0:01:40]} 49. Bd4 {[%clk 0:00:54]}  Ke7 {[%clk 0:01:31]} 50. Bxa6 {[%clk 0:00:51]}  Kd6 {[%clk 0:01:32]} 51. Kb3 {[%clk 0:00:42]}  Kc7 {[%clk 0:01:25]} 52. Bxe5+ {[%clk 0:00:40]}  fxe5 {[%clk 0:01:25]} 53. c4 {[%clk 0:00:40]} 1-0


[Site "https://www.chess.com"]

[Event "Titled Tuesday Blitz August 09 Early 2022"]
[White "Kukreja, Sankalp"]
[Black "Fernandez, Fernando"]
[WhiteFideId "45027676"]
[BlackFideId "3802299"]
[WhiteElo "2004"]
[BlackElo "2292"]
[Result "1-0"]
[Round "01"]
[TimeControl "180+1"]
[Date "2022.08.09"]
[WhiteClock "0:00:19"]
[BlackClock "0:00:02"]

1. e4 {[%clk 0:03:00]}  e5 {[%clk 0:02:04]} 2. Nf3 {[%clk 0:02:40]}  Nc6 {[%clk 0:02:04]} 3. Bc4 {[%clk 0:02:40]}  Bc5 {[%clk 0:02:02]} 4. c3 {[%clk 0:02:40]}  Nf6 {[%clk 0:02:01]} 5. d3 {[%clk 0:02:38]}  d6 {[%clk 0:01:57]} 6. Nbd2 {[%clk 0:02:34]}  Bb6 {[%clk 0:01:53]} 7. Bb3 {[%clk 0:02:34]}  a5 {[%clk 0:01:48]} 8. O-O {[%clk 0:02:30]}  O-O {[%clk 0:01:48]} 9. h3 {[%clk 0:02:28]}  Ne7 {[%clk 0:01:44]} 10. Re1 {[%clk 0:02:25]}  Ng6 {[%clk 0:01:44]} 11. Nf1 {[%clk 0:02:22]}  h6 {[%clk 0:01:40]} 12. Ng3 {[%clk 0:02:22]}  c6 {[%clk 0:01:36]} 13. d4 {[%clk 0:02:20]}  Re8 {[%clk 0:01:27]} 14. Bc2 {[%clk 0:02:18]}  Qc7 {[%clk 0:01:20]} 15. Be3 {[%clk 0:02:16]}  Ba7 {[%clk 0:01:16]} 16. Qd2 {[%clk 0:02:08]}  Kh7 {[%clk 0:01:12]} 17. Rad1 {[%clk 0:01:57]}  b5 {[%clk 0:01:05]} 18. Qc1 {[%clk 0:01:55]}  Bb7 {[%clk 0:01:03]} 19. Nf5 {[%clk 0:01:53]}  Ng8 {[%clk 0:01:00]} 20. h4 {[%clk 0:01:42]}  Bc8 {[%clk 0:00:57]} 21. h5 {[%clk 0:01:40]}  Nf8 {[%clk 0:00:57]} 22. Ng3 {[%clk 0:01:33]}  Bg4 {[%clk 0:00:55]} 23. Nf5 {[%clk 0:01:28]}  Ne6 {[%clk 0:00:52]} 24. d5 {[%clk 0:01:25]}  Bxe3 {[%clk 0:00:42]} 25. fxe3 {[%clk 0:01:17]}  Nc5 {[%clk 0:00:35]} 26. Ng3 {[%clk 0:01:02]}  Nf6 {[%clk 0:00:30]} 27. Rf1 {[%clk 0:00:58]}  Nxh5 {[%clk 0:00:29]} 28. Nxh5 {[%clk 0:00:58]}  Bxh5 {[%clk 0:00:30]} 29. Qd2 {[%clk 0:00:59]}  Rad8 {[%clk 0:00:25]} 30. Qf2 {[%clk 0:00:59]}  Kg8 {[%clk 0:00:24]} 31. Qh4 {[%clk 0:00:58]}  Bg6 {[%clk 0:00:24]} 32. Qg4 {[%clk 0:00:58]}  cxd5 {[%clk 0:00:23]} 33. Nh4 {[%clk 0:00:57]}  Bh7 {[%clk 0:00:11]} 34. Rxd5 {[%clk 0:00:54]}  b4 {[%clk 0:00:12]} 35. Rf3 {[%clk 0:00:42]}  bxc3 {[%clk 0:00:10]} 36. Rg3 {[%clk 0:00:42]}  Ne6 {[%clk 0:00:10]} 37. bxc3 {[%clk 0:00:39]}  Qxc3 {[%clk 0:00:09]} 38. Bb3 {[%clk 0:00:40]}  a4 {[%clk 0:00:08]} 39. Bxa4 {[%clk 0:00:39]}  Qa1+ {[%clk 0:00:08]} 40. Kh2 {[%clk 0:00:39]}  Qxa2 {[%clk 0:00:09]} 41. Bxe8 {[%clk 0:00:36]}  Rxe8 {[%clk 0:00:10]} 42. Rxd6 {[%clk 0:00:36]}  g5 {[%clk 0:00:06]} 43. Nf5 {[%clk 0:00:34]}  Bxf5 {[%clk 0:00:06]} 44. exf5 {[%clk 0:00:32]}  Qa3 {[%clk 0:00:06]} 45. Rc6 {[%clk 0:00:24]}  Qa8 {[%clk 0:00:06]} 46. Qc4 {[%clk 0:00:19]}  Ng7 {[%clk 0:00:05]} 47. Rxh6 {[%clk 0:00:19]}  Nxf5 {[%clk 0:00:04]} 48. Rxg5+ {[%clk 0:00:19]}  Ng7 {[%clk 0:00:03]} 49. Qg4 {[%clk 0:00:19]}  Kf8 {[%clk 0:00:02]} 50. Rxg7 {[%clk 0:00:19]} 1-0


[Site "https://www.chess.com"]

[Event "Titled Tuesday Blitz August 09 Early 2022"]
[White "Legenia, Artem"]
[Black "Ekdyshman, Mikhail"]
[WhiteFideId "14136945"]
[BlackFideId "4149416"]
[WhiteElo "1936"]
[BlackElo "2146"]
[Result "0-1"]
[Round "01"]
[TimeControl "180+1"]
[Date "2022.08.09"]
[WhiteClock "0:00:44"]
[BlackClock "0:01:00"]

1. e4 {[%clk 0:02:49]}  c5 {[%clk 0:02:59]} 2. Nf3 {[%clk 0:02:48]}  g6 {[%clk 0:02:59]} 3. c3 {[%clk 0:02:34]}  Bg7 {[%clk 0:02:59]} 4. Bc4 {[%clk 0:02:33]}  e6 {[%clk 0:02:52]} 5. Qe2 {[%clk 0:02:33]}  Ne7 {[%clk 0:02:51]} 6. d3 {[%clk 0:02:32]}  O-O {[%clk 0:02:49]} 7. Bb3 {[%clk 0:02:32]}  Nbc6 {[%clk 0:02:46]} 8. O-O {[%clk 0:02:32]}  d5 {[%clk 0:02:43]} 9. Bg5 {[%clk 0:02:28]}  h6 {[%clk 0:02:40]} 10. Bf4 {[%clk 0:02:27]}  e5 {[%clk 0:02:38]} 11. Bg3 {[%clk 0:02:06]}  c4 {[%clk 0:02:33]} 12. Bc2 {[%clk 0:01:58]}  cxd3 {[%clk 0:02:24]} 13. Bxd3 {[%clk 0:01:58]}  dxe4 {[%clk 0:02:12]} 14. Bxe4 {[%clk 0:01:57]}  Qc7 {[%clk 0:02:06]} 15. Nd4 {[%clk 0:01:38]}  f5 {[%clk 0:01:54]} 16. Qc4+ {[%clk 0:01:20]}  Kh7 {[%clk 0:01:53]} 17. Bxc6 {[%clk 0:01:20]}  Nxc6 {[%clk 0:01:47]} 18. Nxc6 {[%clk 0:01:20]}  bxc6 {[%clk 0:01:44]} 19. f4 {[%clk 0:01:19]}  Qb6+ {[%clk 0:01:40]} 20. Rf2 {[%clk 0:01:17]}  Ba6 {[%clk 0:01:35]} 21. Qb4 {[%clk 0:01:08]}  Qxb4 {[%clk 0:01:27]} 22. cxb4 {[%clk 0:01:08]}  e4 {[%clk 0:01:26]} 23. Nc3 {[%clk 0:01:07]}  Rad8 {[%clk 0:01:17]} 24. Kh1 {[%clk 0:01:02]}  Rfe8 {[%clk 0:01:11]} 25. Rc2 {[%clk 0:00:56]}  Bd3 {[%clk 0:01:08]} 26. Rf2 {[%clk 0:00:49]}  e3 {[%clk 0:01:08]} 27. Rf3 {[%clk 0:00:49]}  e2 {[%clk 0:01:08]} 28. Be1 {[%clk 0:00:49]}  Bc2 {[%clk 0:01:04]} 29. Kg1 {[%clk 0:00:48]}  Rd1 {[%clk 0:01:02]} 30. Rxd1 {[%clk 0:00:44]}  exd1=Q {[%clk 0:01:01]} 31. Nxd1 {[%clk 0:00:44]}  Rxe1+ {[%clk 0:01:00]} 0-1


[Site "https://www.chess.com"]